[Event "Czech Open-E Teams 2022"]
[Site "Pardubice"]
[Date "2022.07.14"]
[Round "1.29"]
[White "Plat, Vojtech"]
[Black "Cerovsky, Marek"]
[Result "1/2-1/2"]
[ECO "B50"]
[WhiteElo "2554"]
[BlackElo "1993"]
[Annotator "ChessBase"]
[PlyCount "86"]
[EventDate "2022.07.14"]
[EventType "team-tourn"]
[EventCountry "CZE"]
[SourceTitle "playchess.com"]
[Source "ChessBase"]
[SourceQuality "1"]
[TimeControl "5400+30"]

1. e4 {[%emt 0:00:03]} c5 {[%emt 0:00:36]} 2. Nf3 {[%emt 0:00:14]} d6 {[%emt 0:00:03]} 3. d3 {[%emt 0:00:16]} g6 {[%emt 0:00:32]} 4. g3 {[%emt 0:00:07]} Bg7 {[%emt 0:00:04]} 5. Bg2 {[%emt 0:00:04]} Nc6 {[%emt 0:00:43]} 6. O-O {[%emt 0:00:32]} Nf6 {[%emt 0:02:01]} 7. Nbd2 {[%emt 0:02:00]} Rb8 {[%emt 0:00:54]} 8. a4 {[%emt 0:02:27]} a6 {[%emt 0:03:10]} 9. Re1 {[%emt 0:02:13]} O-O {[%emt 0:00:31]} 10. Nf1 {[%emt 0:05:23]} b5 {[%emt 0:02:46]} 11. h4 {[%emt 0:05:31]} Qb6 {[%emt 0:03:46]} 12. Ne3 {[%emt 0:03:53]} Bg4 {[%emt 0:09:07]} 13. Nxg4 {[%emt 0:07:48]} Nxg4 {[%emt 0:00:12]} 14. Bh3 {[%emt 0:04:17]} Nf6 {[%emt 0:07:10]} 15. g4 {[%emt 0:08:35]} e6 {[%emt 0:07:33]} 16. axb5 {[%emt 0:07:50]} axb5 {[%emt 0:00:40]} 17. Be3 {[%emt 0:02:11]} Nd7 {[%emt 0:04:08]} 18. Rb1 {[%emt 0:00:46]} b4 {[%emt 0:01:06]} 19. h5 {[%emt 0:02:54]} Ra8 {[%emt 0:04:32]} 20. Nd2 {[%emt 0:06:17]} Ra2 {[%emt 0:02:35]} 21. h6 {[%emt 0:01:09]} Bh8 {[%emt 0:01:37]} 22. f4 {[%emt 0:01:40]} Qc7 {[%emt 0:05:02]} 23. f5 {[%emt 0:01:14]} d5 {[%emt 0:03:55]} 24. Kg2 {[%emt 0:05:47]} Rxb2 {[%emt 0:02:42]} 25. Rxb2 {[%emt 0:06:08]} Bxb2 {[%emt 0:00:14]} 26. fxe6 {[%emt 0:00:40]} fxe6 {[%emt 0:00:34]} 27. g5 {[%emt 0:00:08]} Qd6 {[%emt 0:02:31]} 28. Qg4 {[%emt 0:01:07]} Re8 {[%emt 0:03:45]} 29. Rf1 {[%emt 0:01:26]} Nce5 {[%emt 0:09:53]} 30. Qg3 {[%emt 0:00:50]} Nf7 {[%emt 0:00:46]} 31. Qxd6 {[%emt 0:06:54]} Nxd6 {[%emt 0:00:03]} 32. exd5 {[%emt 0:00:05]} exd5 {[%emt 0:00:44]} 33. Bxd7 {[%emt 0:00:39]} Rxe3 {[%emt 0:02:21]} 34. Ne4 {[%emt 0:00:54]} Nf5 {[%emt 0:01:16]} 35. Be6+ {[%emt 0:03:06]} Kf8 {[%emt 0:04:35]} 36. Bxf5 {[%emt 0:01:12]} dxe4 {[%emt 0:02:09]} 37. Bxg6+ {[%emt 0:00:53]} Rf3 {[%emt 0:00:10]} 38. Rb1 {[%emt 0:03:59]} Be5 {[%emt 0:00:03]} 39. Bxh7 {[%emt 0:01:06]} Rg3+ {[%emt 0:00:09]} 40. Kf2 {[%emt 0:00:44]} exd3 {[%emt 0:00:48]} 41. g6 {[%emt 0:00:49]} dxc2 {[%emt 0:01:37]} 42. g7+ {[%emt 0:02:08]} Bxg7 {[%emt 0:00:37]} 43. hxg7+ {[%emt 0:00:11]} Kxg7 1/2-1/2

[Event "Czech Open-E Teams 2022"]
[Site "Pardubice"]
[Date "2022.07.14"]
[Round "1.30"]
[White "Smid, Jaroslav"]
[Black "Eret, Matous"]
[Result "0-1"]
[ECO "B07"]
[WhiteElo "1900"]
[BlackElo "2273"]
[Annotator "ChessBase"]
[PlyCount "148"]
[EventDate "2022.07.14"]
[EventType "team-tourn"]
[EventCountry "CZE"]
[SourceTitle "playchess.com"]
[Source "ChessBase"]
[SourceQuality "1"]
[TimeControl "5400+30"]

1. e4 {[%emt 0:00:12]} d6 {[%emt 0:00:08]} 2. d4 {[%emt 0:00:14]} Nf6 {[%emt 0:00:05]} 3. Nc3 {[%emt 0:00:13]} e5 {[%emt 0:00:35]} 4. dxe5 {[%emt 0:02:07]} dxe5 {[%emt 0:00:06]} 5. Qxd8+ {[%emt 0:01:31]} Kxd8 {[%emt 0:00:04]} 6. Bc4 {[%emt 0:08:01]} Be6 {[%emt 0:00:07]} 7. Bxe6 {[%emt 0:01:24]} fxe6 {[%emt 0:00:05]} 8. Be3 {[%emt 0:02:48]} Bd6 {[%emt 0:02:07]} 9. O-O-O {[%emt 0:01:01]} Ke7 {[%emt 0:00:08]} 10. Nge2 {[%emt 0:02:40]} Nc6 {[%emt 0:01:38]} 11. Rhf1 {[%emt 0:03:36]} a6 {[%emt 0:02:23]} 12. f4 {[%emt 0:08:18]} Ng4 {[%emt 0:00:40]} 13. Bg1 {[%emt 0:00:51]} exf4 {[%emt 0:01:15]} 14. Nxf4 {[%emt 0:01:43]} g5 {[%emt 0:01:52]} 15. Nd3 {[%emt 0:10:40]} Nxh2 {[%emt 0:04:53]} 16. e5 {[%emt 0:09:58]} Nxe5 {[%emt 0:01:20]} 17. Rfe1 {[%emt 0:02:30]} Nxd3+ {[%emt 0:02:29]} 18. Rxd3 {[%emt 0:00:12]} Ng4 {[%emt 0:00:09]} 19. Nd5+ {[%emt 0:02:40]} Kd8 {[%emt 0:05:47]} 20. Nb6 {[%emt 0:11:55]} Rb8 {[%emt 0:02:18]} 21. Bc5 {[%emt 0:04:58]} Ke7 {[%emt 0:01:17]} 22. Nd5+ {[%emt 0:01:35]} Kf7 {[%emt 0:03:46]} 23. Rf3+ {[%emt 0:01:16]} Kg7 {[%emt 0:01:52]} 24. Bxd6 {[%emt 0:04:28]} cxd6 {[%emt 0:00:53]} 25. Rxe6 {[%emt 0:00:37]} Rhe8 {[%emt 0:01:00]} 26. Rxd6 {[%emt 0:02:28]} Rbd8 {[%emt 0:00:28]} 27. Rxd8 {[%emt 0:01:39]} Rxd8 {[%emt 0:00:04]} 28. Nc7 {[%emt 0:01:04]} Kg6 {[%emt 0:01:38]} 29. Ne6 {[%emt 0:00:54]} Re8 {[%emt 0:02:57]} 30. Nd4 {[%emt 0:01:12]} Re1+ {[%emt 0:01:57]} 31. Kd2 {[%emt 0:00:06]} Rg1 {[%emt 0:00:06]} 32. Rg3 {[%emt 0:01:15]} h5 {[%emt 0:07:00]} 33. Ke2 {[%emt 0:00:41]} Kf6 {[%emt 0:02:40]} 34. a4 {[%emt 0:01:14]} Ra1 {[%emt 0:02:37]} 35. b3 {[%emt 0:01:55]} Kg6 {[%emt 0:04:27]} 36. Rc3 {[%emt 0:00:56]} Rg1 {[%emt 0:00:47]} 37. Rg3 {[%emt 0:00:20]} Kf6 {[%emt 0:01:13]} 38. b4 {[%emt 0:01:49]} Ra1 {[%emt 0:01:46]} 39. a5 {[%emt 0:00:35]} Ra4 {[%emt 0:04:56]} 40. Rb3 {[%emt 0:00:38]} h4 {[%emt 0:00:35]} 41. Kf3 {[%emt 0:02:22]} Ne5+ {[%emt 0:00:31]} 42. Ke4 {[%emt 0:00:27]} Ra1 {[%emt 0:01:10]} 43. Nf3 {[%emt 0:01:47]} Nxf3 {[%emt 0:02:33]} 44. Rxf3+ {[%emt 0:00:20]} Kg6 {[%emt 0:04:48]} 45. Kd5 {[%emt 0:01:17]} Rd1+ {[%emt 0:00:46]} 46. Kc5 {[%emt 0:00:50]} Rd2 {[%emt 0:00:07]} 47. Kb6 {[%emt 0:00:54]} Rxg2 {[%emt 0:00:26]} 48. Kxb7 {[%emt 0:00:42]} g4 {[%emt 0:00:29]} 49. Rf1 {[%emt 0:01:24]} h3 {[%emt 0:00:04]} 50. b5 {[%emt 0:00:07]} h2 {[%emt 0:02:55]} 51. Rh1 {[%emt 0:00:03]} g3 {[%emt 0:02:22]} 52. bxa6 {[%emt 0:00:18]} Rg1 {[%emt 0:00:04]} 53. a7 {[%emt 0:00:22]} Rxh1 {[%emt 0:00:05]} 54. a8=Q {[%emt 0:00:07]} Rb1+ {[%emt 0:00:09]} 55. Kc7 {[%emt 0:00:25]} h1=Q {[%emt 0:00:04]} 56. Qe8+ {[%emt 0:02:36]} Kf6 {[%emt 0:00:44]} 57. Qf8+ {[%emt 0:00:15]} Kg5 {[%emt 0:00:33]} 58. Qg7+ {[%emt 0:00:12]} Kf4 {[%emt 0:00:04]} 59. Qf6+ Ke3 60. Qc3+ Kf2 61. Qd4+ Kg2 62. Qe4+ Kh2 63. Qh4+ Kg2 64. Qe4+ Kf2 65. Qd4+ Ke1 66. Qe3+ Kd1 67. Qd3+ Kc1 68. Qe3+ Kxc2 69. Qf2+ Kc1 70. Qe3+ Kb2 71. Qf2+ Ka1 72. Qd4+ Rb2 73. Qe3 Rb1 74. Qe2 Rb2 0-1

[Event "Czech Open-E Teams 2022"]
[Site "Pardubice"]
[Date "2022.07.14"]
[Round "1.31"]
[White "Eret, Jonas"]
[Black "Zahalka, Jan"]
[Result "1-0"]
[ECO "B76"]
[WhiteElo "2219"]
[BlackElo "1866"]
[Annotator "ChessBase"]
[PlyCount "57"]
[EventDate "2022.07.14"]
[EventType "team-tourn"]
[EventCountry "CZE"]
[SourceTitle "playchess.com"]
[Source "ChessBase"]
[SourceQuality "1"]
[TimeControl "5400+30"]

1. e4 {[%emt 0:01:23]} c5 {[%emt 0:00:00]} 2. Nf3 {[%emt 0:00:17]} d6 {[%emt 0:00:00]} 3. d4 {[%emt 0:00:15]} cxd4 {[%emt 0:00:02]} 4. Nxd4 {[%emt 0:00:22]} Nf6 {[%emt 0:00:08]} 5. Nc3 {[%emt 0:01:07]} g6 {[%emt 0:00:11]} 6. Be3 {[%emt 0:00:12]} Bg7 {[%emt 0:00:12]} 7. f3 {[%emt 0:00:55]} O-O {[%emt 0:00:15]} 8. Qd2 {[%emt 0:00:50]} Nc6 {[%emt 0:00:25]} 9. O-O-O Nxd4 {[%emt 0:16:15]} 10. Bxd4 {[%emt 0:00:00]} Be6 {[%emt 0:00:43]} 11. Kb1 {[%emt 0:00:00]} Rc8 {[%emt 0:01:32]} 12. g4 {[%emt 0:00:00]} a6 {[%emt 0:03:37]} 13. h4 {[%emt 0:02:05]} b5 {[%emt 0:13:33]} 14. h5 {[%emt 0:01:08]} b4 {[%emt 0:02:24]} 15. Nd5 {[%emt 0:01:31]} Bxd5 {[%emt 0:01:27]} 16. exd5 {[%emt 0:00:14]} Qa5 {[%emt 0:01:29]} 17. hxg6 {[%emt 0:04:35]} fxg6 {[%emt 0:01:59]} 18. g5 {[%emt 0:03:40]} Nh5 {[%emt 0:14:56]} 19. Bh3 {[%emt 0:01:10]} Rc4 {[%emt 0:18:55]} 20. Be6+ {[%emt 0:00:43]} Kh8 {[%emt 0:00:28]} 21. Bxg7+ {[%emt 0:01:17]} Kxg7 {[%emt 0:00:51]} 22. b3 {[%emt 0:05:32]} Rcf4 {[%emt 0:01:31]} 23. Bg4 {[%emt 0:00:05]} Ng3 {[%emt 0:04:27]} 24. Qh2 {[%emt 0:05:17]} Nxh1 {[%emt 0:07:25]} 25. Qh6+ {[%emt 0:04:16]} Kf7 {[%emt 0:06:45]} 26. Qxh7+ {[%emt 0:03:24]} Ke8 {[%emt 0:00:09]} 27. Re1 {[%emt 0:00:25]} R8f7 {[%emt 0:02:30]} 28. Qg8+ {[%emt 0:00:44]} Rf8 {[%emt 0:00:14]} 29. Rxe7+ {[%emt 0:00:45]} 1-0

[Event "Czech Open-E Teams 2022"]
[Site "Pardubice"]
[Date "2022.07.14"]
[Round "1.32"]
[White "Fuchs, Frantisek"]
[Black "Simet, Martin"]
[Result "0-1"]
[ECO "B02"]
[WhiteElo "1868"]
[BlackElo "2155"]
[Annotator "ChessBase"]
[PlyCount "62"]
[EventDate "2022.07.14"]
[EventType "team-tourn"]
[EventCountry "CZE"]
[SourceTitle "playchess.com"]
[Source "ChessBase"]
[SourceQuality "1"]
[TimeControl "5400+30"]

1. e4 {[%emt 0:00:05]} Nf6 {[%emt 0:00:12]} 2. e5 {[%emt 0:00:20]} Nd5 {[%emt 0:00:02]} 3. Nc3 {[%emt 0:00:11]} e6 {[%emt 0:00:47]} 4. d4 {[%emt 0:00:38]} d6 {[%emt 0:03:20]} 5. Nf3 {[%emt 0:01:12]} dxe5 {[%emt 0:04:39]} 6. Nxe5 {[%emt 0:00:07]} Bb4 {[%emt 0:05:05]} 7. Qg4 {[%emt 0:07:38]} g6 {[%emt 0:11:07]} 8. Bd2 {[%emt 0:01:04]} f6 {[%emt 0:05:54]} 9. Nf3 {[%emt 0:06:41]} c5 {[%emt 0:04:59]} 10. Bb5+ {[%emt 0:02:14]} Nc6 {[%emt 0:01:12]} 11. dxc5 {[%emt 0:02:04]} Bxc5 {[%emt 0:05:55]} 12. O-O-O {[%emt 0:02:16]} Qb6 {[%emt 0:04:30]} 13. Rhe1 {[%emt 0:06:01]} Kf7 {[%emt 0:03:53]} 14. Bc4 {[%emt 0:02:53]} Nce7 {[%emt 0:05:44]} 15. h4 {[%emt 0:01:33]} Bxf2 {[%emt 0:04:23]} 16. Re2 {[%emt 0:20:18]} Ne3 {[%emt 0:01:54]} 17. Bxe3 {[%emt 0:00:46]} Bxe3+ {[%emt 0:00:05]} 18. Kb1 {[%emt 0:00:15]} Nf5 {[%emt 0:00:48]} 19. Qe4 {[%emt 0:01:39]} Bh6 {[%emt 0:07:20]} 20. Rd3 {[%emt 0:07:02]} Re8 {[%emt 0:06:25]} 21. Nd5 {[%emt 0:08:04]} Qc6 {[%emt 0:06:14]} 22. Bb3 {[%emt 0:00:35]} Kg7 {[%emt 0:05:30]} 23. Rc3 {[%emt 0:00:25]} Qd6 {[%emt 0:00:27]} 24. Rd3 {[%emt 0:04:13]} Qc6 {[%emt 0:05:35]} 25. Ba4 {[%emt 0:06:22]} b5 {[%emt 0:02:03]} 26. Rc3 {[%emt 0:02:03]} Qd6 {[%emt 0:02:05]} 27. Rc7+ {[%emt 0:05:45]} Re7 {[%emt 0:00:02]} 28. Rxe7+ {[%emt 0:01:50]} Nxe7 {[%emt 0:00:00]} 29. Nc3 {[%emt 0:00:23]} Rb8 {[%emt 0:00:28]} 30. Bxb5 {[%emt 0:00:14]} Rxb5 {[%emt 0:00:31]} 31. g4 {[%emt 0:03:09]} Rb4 {[%emt 0:00:33]} 0-1

[Event "Czech Open-E Teams 2022"]
[Site "Pardubice"]
[Date "2022.07.14"]
[Round "1.33"]
[White "Horvath, Tomas"]
[Black "Cech, Pavel"]
[Result "0-1"]
[ECO "C06"]
[WhiteElo "2094"]
[BlackElo "2358"]
[Annotator "ChessBase"]
[PlyCount "86"]
[EventDate "2022.07.14"]
[EventType "team-tourn"]
[EventCountry "CZE"]
[SourceTitle "playchess.com"]
[Source "ChessBase"]
[SourceQuality "1"]
[TimeControl "5400+30"]

1. e4 {[%emt 0:00:04]} e6 {[%emt 0:00:06]} 2. d4 {[%emt 0:00:06]} d5 {[%emt 0:00:06]} 3. Nd2 {[%emt 0:00:04]} Nf6 {[%emt 0:00:10]} 4. e5 {[%emt 0:00:06]} Nfd7 {[%emt 0:00:07]} 5. Bd3 {[%emt 0:00:10]} c5 {[%emt 0:00:07]} 6. c3 {[%emt 0:00:16]} Nc6 {[%emt 0:00:09]} 7. Ne2 {[%emt 0:00:07]} cxd4 {[%emt 0:00:13]} 8. cxd4 {[%emt 0:00:08]} f6 {[%emt 0:00:05]} 9. Nf4 {[%emt 0:00:59]} Nxd4 {[%emt 0:00:10]} 10. Qh5+ {[%emt 0:00:06]} Ke7 {[%emt 0:00:05]} 11. Ng6+ {[%emt 0:00:59]} hxg6 {[%emt 0:00:22]} 12. exf6+ {[%emt 0:00:25]} Nxf6 {[%emt 0:00:20]} 13. Qxh8 {[%emt 0:00:07]} Kf7 {[%emt 0:04:07]} 14. O-O {[%emt 0:01:52]} e5 {[%emt 0:12:10]} 15. Nb3 {[%emt 0:04:41]} Nf5 {[%emt 0:11:20]} 16. Bg5 {[%emt 0:08:54]} e4 {[%emt 0:03:53]} 17. Be2 {[%emt 0:01:55]} Be6 {[%emt 0:01:25]} 18. Rac1 {[%emt 0:07:20]} Qb6 {[%emt 0:06:03]} 19. g4 {[%emt 0:09:42]} Nh6 {[%emt 0:09:51]} 20. Be3 {[%emt 0:18:21]} Qd6 {[%emt 0:00:17]} 21. Bc5 {[%emt 0:11:28]} Qf4 {[%emt 0:02:08]} 22. Be3 {[%emt 0:01:00]} Qd6 {[%emt 0:00:18]} 23. g5 {[%emt 0:07:13]} Nfg4 {[%emt 0:09:22]} 24. Bxg4 {[%emt 0:00:24]} Nxg4 {[%emt 0:00:51]} 25. Qh4 {[%emt 0:03:42]} Nxe3 {[%emt 0:12:06]} 26. fxe3+ {[%emt 0:00:12]} Kg8 {[%emt 0:00:05]} 27. Nd4 {[%emt 0:02:11]} Bd7 {[%emt 0:01:44]} 28. Qf4 {[%emt 0:07:38]} Qxf4 {[%emt 0:04:14]} 29. Rxf4 {[%emt 0:00:06]} Bd6 {[%emt 0:10:27]} 30. Rf2 {[%emt 0:00:05]} Re8 {[%emt 0:02:43]} 31. Rcf1 {[%emt 0:03:06]} Bh3 {[%emt 0:00:25]} 32. Rc1 {[%emt 0:06:11]} Re5 {[%emt 0:00:13]} 33. Nb5 {[%emt 0:01:16]} Be7 {[%emt 0:03:47]} 34. Rc7 {[%emt 0:04:03]} Bxg5 {[%emt 0:00:34]} 35. Re2 {[%emt 0:00:42]} Rf5 {[%emt 0:01:40]} 36. Rc1 {[%emt 0:00:38]} Bg4 {[%emt 0:00:50]} 37. Ree1 {[%emt 0:00:55]} Bh4 {[%emt 0:01:25]} 38. Nxa7 {[%emt 0:01:40]} Bf3 {[%emt 0:00:36]} 39. Rc8+ {[%emt 0:00:22]} Kh7 {[%emt 0:00:23]} 40. Rec1 {[%emt 0:00:03]} d4 {[%emt 0:00:41]} 41. exd4 {[%emt 0:00:33]} e3 {[%emt 0:00:43]} 42. R8c5 {[%emt 0:00:35]} e2 {[%emt 0:00:47]} 43. Nc8 {[%emt 0:00:43]} Rf4 {[%emt 0:01:06]} 0-1

[Event "Czech Open-E Teams 2022"]
[Site "Pardubice"]
[Date "2022.07.14"]
[Round "1.34"]
[White "Sodoma, Jan"]
[Black "Novak, Jiri"]
[Result "1-0"]
[ECO "A40"]
[WhiteElo "2312"]
[BlackElo "1999"]
[Annotator "ChessBase"]
[PlyCount "105"]
[EventDate "2022.07.14"]
[EventType "team-tourn"]
[EventCountry "CZE"]
[SourceTitle "playchess.com"]
[Source "ChessBase"]
[SourceQuality "1"]
[TimeControl "5400+30"]

1. d4 {[%emt 0:00:03]} e6 {[%emt 0:00:10]} 2. c4 {[%emt 0:00:13]} c5 {[%emt 0:00:23]} 3. d5 {[%emt 0:00:26]} exd5 {[%emt 0:00:07]} 4. cxd5 {[%emt 0:00:09]} d6 {[%emt 0:00:07]} 5. Nc3 {[%emt 0:00:05]} Nf6 {[%emt 0:01:28]} 6. Nf3 {[%emt 0:00:08]} Be7 {[%emt 0:02:48]} 7. h3 {[%emt 0:01:08]} a6 {[%emt 0:02:01]} 8. a4 {[%emt 0:00:19]} O-O {[%emt 0:00:50]} 9. e4 {[%emt 0:00:39]} Re8 {[%emt 0:00:13]} 10. Bd3 {[%emt 0:00:40]} Nbd7 {[%emt 0:01:03]} 11. O-O {[%emt 0:00:12]} Nf8 {[%emt 0:00:28]} 12. Bf4 {[%emt 0:02:13]} Ng6 {[%emt 0:00:09]} 13. Bh2 {[%emt 0:00:05]} Rb8 {[%emt 0:05:38]} 14. Re1 {[%emt 0:01:28]} Nd7 {[%emt 0:04:23]} 15. Bf1 {[%emt 0:09:27]} Qb6 {[%emt 0:07:10]} 16. Qc2 {[%emt 0:01:46]} Nde5 {[%emt 0:01:03]} 17. Nxe5 {[%emt 0:02:43]} dxe5 {[%emt 0:02:57]} 18. Nd1 {[%emt 0:03:42]} Nf4 {[%emt 0:02:08]} 19. a5 {[%emt 0:08:20]} Qg6 {[%emt 0:00:12]} 20. Kh1 {[%emt 0:00:14]} Bd7 {[%emt 0:03:34]} 21. Ne3 {[%emt 0:07:05]} Bb5 {[%emt 0:10:08]} 22. f3 {[%emt 0:05:46]} Rbc8 {[%emt 0:06:36]} 23. Nf5 {[%emt 0:07:13]} c4 {[%emt 0:05:44]} 24. Nxe7+ {[%emt 0:08:00]} Rxe7 {[%emt 0:00:05]} 25. Bxf4 {[%emt 0:00:04]} exf4 {[%emt 0:00:03]} 26. Qc3 {[%emt 0:00:06]} Qd6 {[%emt 0:10:31]} 27. Rac1 {[%emt 0:12:41]} Rec7 {[%emt 0:01:18]} 28. Rcd1 {[%emt 0:01:06]} f6 {[%emt 0:00:57]} 29. e5 {[%emt 0:04:26]} fxe5 {[%emt 0:00:51]} 30. Rxe5 {[%emt 0:00:02]} h6 {[%emt 0:05:04]} 31. Re6 {[%emt 0:03:29]} Qd8 {[%emt 0:02:46]} 32. d6 {[%emt 0:05:12]} Rf7 {[%emt 0:00:40]} 33. Re4 {[%emt 0:01:24]} Qf6 {[%emt 0:04:17]} 34. Qxf6 {[%emt 0:03:09]} Rxf6 {[%emt 0:00:15]} 35. d7 {[%emt 0:00:23]} Rd8 {[%emt 0:00:04]} 36. Bxc4+ {[%emt 0:00:13]} Bxc4 {[%emt 0:00:17]} 37. Rxc4 {[%emt 0:00:15]} Kf8 {[%emt 0:00:20]} 38. Rb4 {[%emt 0:00:48]} Rf5 {[%emt 0:00:42]} 39. Rdd4 {[%emt 0:01:28]} Ke7 {[%emt 0:01:33]} 40. Rxb7 {[%emt 0:00:09]} Rxa5 {[%emt 0:00:46]} 41. Re4+ {[%emt 0:04:46]} Kd6 {[%emt 0:00:30]} 42. Rxf4 {[%emt 0:00:02]} Kc6 {[%emt 0:00:07]} 43. Rfb4 {[%emt 0:00:16]} Rb5 {[%emt 0:00:39]} 44. R7xb5 {[%emt 0:00:05]} axb5 {[%emt 0:00:04]} 45. Rd4 {[%emt 0:00:06]} Rxd7 {[%emt 0:02:45]} 46. Rxd7 {[%emt 0:00:09]} Kxd7 {[%emt 0:00:02]} 47. Kg1 {[%emt 0:00:17]} Kd6 {[%emt 0:00:02]} 48. Kf2 {[%emt 0:00:08]} Kd5 {[%emt 0:00:02]} 49. Ke3 {[%emt 0:00:07]} Kc4 {[%emt 0:00:02]} 50. Kd2 {[%emt 0:00:11]} g5 {[%emt 0:00:43]} 51. g3 {[%emt 0:01:21]} h5 {[%emt 0:00:25]} 52. Ke3 {[%emt 0:01:30]} Kb3 {[%emt 0:00:13]} 53. f4 {[%emt 0:00:06]} 1-0

[Event "Czech Open-E Teams 2022"]
[Site "Pardubice"]
[Date "2022.07.14"]
[Round "1.35"]
[White "Fialka, Adam"]
[Black "Vitak, Jiri"]
[Result "0-1"]
[ECO "C50"]
[WhiteElo "1847"]
[BlackElo "2223"]
[Annotator "ChessBase"]
[PlyCount "128"]
[EventDate "2022.07.14"]
[EventType "team-tourn"]
[EventCountry "CZE"]
[SourceTitle "playchess.com"]
[Source "ChessBase"]
[SourceQuality "1"]
[TimeControl "5400+30"]

1. e4 {[%emt 0:00:03]} e5 {[%emt 0:00:13]} 2. Nf3 {[%emt 0:00:05]} Nc6 {[%emt 0:00:09]} 3. Bc4 {[%emt 0:00:30]} Nf6 {[%emt 0:02:36]} 4. d3 {[%emt 0:02:02]} Bc5 {[%emt 0:00:22]} 5. c3 {[%emt 0:00:08]} d6 {[%emt 0:03:20]} 6. b4 {[%emt 0:00:26]} Bb6 {[%emt 0:00:49]} 7. a4 {[%emt 0:01:06]} a5 {[%emt 0:03:16]} 8. Be3 {[%emt 0:01:10]} Bxe3 {[%emt 0:07:35]} 9. fxe3 {[%emt 0:00:07]} O-O {[%emt 0:00:51]} 10. b5 {[%emt 0:01:40]} Ne7 {[%emt 0:04:26]} 11. Nbd2 {[%emt 0:08:03]} c6 {[%emt 0:06:24]} 12. d4 {[%emt 0:06:43]} exd4 {[%emt 0:01:58]} 13. exd4 {[%emt 0:00:09]} d5 {[%emt 0:02:48]} 14. e5 {[%emt 0:04:43]} dxc4 {[%emt 0:14:55]} 15. exf6 {[%emt 0:00:07]} Nd5 {[%emt 0:00:08]} 16. Nxc4 {[%emt 0:06:40]} Re8+ {[%emt 0:01:19]} 17. Kf1 {[%emt 0:07:53]} cxb5 {[%emt 0:03:16]} 18. axb5 {[%emt 0:00:07]} Qxf6 {[%emt 0:03:32]} 19. Qd2 {[%emt 0:01:48]} Bg4 {[%emt 0:04:43]} 20. Nce5 {[%emt 0:04:20]} Bxf3 {[%emt 0:00:39]} 21. Nxf3 {[%emt 0:06:16]} Rac8 {[%emt 0:03:35]} 22. c4 {[%emt 0:02:53]} Rxc4 {[%emt 0:03:50]} 23. Kf2 {[%emt 0:01:32]} Nc3 {[%emt 0:03:21]} 24. Rhe1 {[%emt 0:02:24]} Qd8 {[%emt 0:08:41]} 25. Qd3 {[%emt 0:03:14]} Rc8 {[%emt 0:00:48]} 26. Rxe8+ {[%emt 0:01:29]} Qxe8 {[%emt 0:00:01]} 27. Rc1 {[%emt 0:00:15]} Nd5 {[%emt 0:01:17]} 28. Qe4 {[%emt 0:02:12]} Rd8 {[%emt 0:02:42]} 29. Qxe8+ {[%emt 0:02:03]} Rxe8 {[%emt 0:00:01]} 30. Rc5 {[%emt 0:00:10]} Rd8 {[%emt 0:00:24]} 31. b6 {[%emt 0:01:33]} a4 {[%emt 0:00:40]} 32. Rb5 {[%emt 0:01:47]} Rd6 {[%emt 0:00:55]} 33. Ke1 {[%emt 0:01:05]} f6 {[%emt 0:02:39]} 34. Kd2 {[%emt 0:01:05]} Kf7 {[%emt 0:00:51]} 35. Ra5 {[%emt 0:01:42]} Nxb6 {[%emt 0:00:31]} 36. Ra7 {[%emt 0:00:07]} Rd7 {[%emt 0:00:41]} 37. Kd3 {[%emt 0:00:03]} Ke7 {[%emt 0:05:37]} 38. Nd2 {[%emt 0:00:15]} f5 {[%emt 0:02:58]} 39. Nb1 {[%emt 0:01:14]} Nd5 {[%emt 0:00:50]} 40. Rxa4 {[%emt 0:01:13]} Nf4+ {[%emt 0:00:04]} 41. Kd2 {[%emt 0:00:43]} Nxg2 {[%emt 0:00:22]} 42. Nc3 {[%emt 0:00:14]} g5 {[%emt 0:00:49]} 43. Ne2 {[%emt 0:00:35]} f4 {[%emt 0:00:24]} 44. Ra5 {[%emt 0:00:37]} Kf6 {[%emt 0:00:51]} 45. Kd3 {[%emt 0:01:23]} Re7 {[%emt 0:01:40]} 46. Nc3 {[%emt 0:00:09]} Ne1+ {[%emt 0:01:15]} 47. Kd2 {[%emt 0:01:02]} Kg6 {[%emt 0:00:53]} 48. Nd5 {[%emt 0:01:12]} Re4 {[%emt 0:00:33]} 49. Rb5 {[%emt 0:01:10]} Nf3+ {[%emt 0:00:33]} 50. Kc3 {[%emt 0:00:11]} Nxh2 {[%emt 0:01:25]} 51. Rb6+ {[%emt 0:00:34]} Kf5 {[%emt 0:00:36]} 52. Rf6+ {[%emt 0:00:06]} Kg4 {[%emt 0:00:06]} 53. Rh6 {[%emt 0:00:07]} Kg3 {[%emt 0:00:46]} 54. Nf6 {[%emt 0:01:49]} Re3+ {[%emt 0:00:21]} 55. Kc2 {[%emt 0:00:08]} Re2+ {[%emt 0:00:27]} 56. Kd3 {[%emt 0:00:11]} f3 {[%emt 0:00:33]} 57. Ne4+ {[%emt 0:01:31]} Rxe4 {[%emt 0:01:08]} 58. Kxe4 {[%emt 0:00:07]} f2 {[%emt 0:00:17]} 59. Rf6 {[%emt 0:00:16]} f1=Q {[%emt 0:00:42]} 60. Rxf1 {[%emt 0:04:22]} Nxf1 {[%emt 0:00:05]} 61. d5 {[%emt 0:00:25]} Nd2+ {[%emt 0:00:23]} 62. Kd3 {[%emt 0:00:09]} Nb3 {[%emt 0:00:26]} 63. Kc4 {[%emt 0:00:36]} Na5+ {[%emt 0:00:17]} 64. Kb5 {[%emt 0:00:05]} Nc6 {[%emt 0:00:09]} 0-1